bitfinex-derivatives/quotes_SOLF0:USTF0_20250307
["timestamp","ask_amount","ask_price","bid_price","bid_amount"]
[1741344949244,0.04517045,143.88,143.86,0.04427324]
[1741344949548,0.04517045,143.88,143.86,6.99457324]
[1741344950841,6.99467045,143.88,143.86,6.99457324]
[1741344951941,6.99467045,143.88,143.86,0.04427324]
[1741344953045,6.99467045,143.88,143.86,6.99457324]
[1741344953745,0.04517045,143.88,143.86,0.04427324]
[1741344953946,6.9498,143.87,143.86,0.04427324]
[1741344955146,0.04517045,143.88,143.86,0.04427324]
[1741344955340,6.99477045,143.88,143.86,0.04427324]
[1741344955846,6.9498,143.87,143.86,0.04427324]
[1741344956542,6.99477045,143.88,143.86,0.04427324]
[1741344956941,0.04517045,143.88,143.86,0.04427324]
[1741344957342,6.99457045,143.88,143.86,0.04427324]
[1741344958352,0.04517045,143.88,143.86,0.04427324]
[1741344958552,6.9498,143.87,143.86,0.04427324]
[1741344961041,6.9525,143.82,143.8,1.9301]
[1741344961246,27.04,143.87,143.8,1.9301]
[1741344961549,27.04,143.87,143.78,18.26188513]
[1741344961750,1.9522,143.86,143.78,18.26188513]
[1741344962152,0.05044684,143.83,143.81,0.04617845]
[1741344962448,6.9526,143.82,143.81,0.04617845]
[1741344962953,33.9926,143.82,143.81,0.04617845]
[1741344964048,0.05044684,143.83,143.81,0.04617845]
[1741344964853,0.05044684,143.83,143.82,6.9523]
[1741344965055,0.05044684,143.83,143.81,0.04617845]
[1741344966654,7.00224684,143.83,143.81,0.04617845]
[1741344966956,0.05044684,143.83,143.81,0.04617845]
[1741344967351,0.05044684,143.83,143.82,6.9523]
[1741344967558,0.05044684,143.83,143.81,0.04617845]
[1741344968651,0.05044684,143.83,143.82,25.21418513]
[1741344969355,0.05044684,143.83,143.81,0.04617845]
[1741344972856,6.9523,143.82,143.81,0.04617845]
[1741344973462,7.00224684,143.83,143.81,0.04617845]
[1741344973757,0.05044684,143.83,143.81,0.04617845]
[1741344973959,0.05044684,143.83,143.81,6.99847845]
[1741344974755,0.05044684,143.83,143.81,0.04617845]
[1741344975358,0.05044684,143.83,143.82,6.9523]
[1741344976464,0.05044684,143.83,143.81,6.99867845]
[1741344976959,0.05044684,143.83,143.82,6.9523]
[1741344977161,0.05044684,143.83,143.81,0.04617845]
[1741344978057,6.9523,143.82,143.81,0.04617845]
[1741344978262,0.05044684,143.83,143.81,0.04617845]
[1741344979461,6.9523,143.82,143.81,0.04617845]
[1741345000769,0.05044684,143.83,143.81,0.04617845]
[1741345000976,0.05044684,143.83,143.82,11.69919298]
[1741345001570,0.05044684,143.83,143.82,18.65149298]
[1741345003171,7.00224684,143.83,143.82,11.69919298]
[1741345013791,6.9523,143.82,143.81,0.04617845]
[1741345013984,0.05044684,143.83,143.81,0.04617845]
[1741345014588,7.00234684,143.83,143.81,0.04617845]
[1741345014890,0.05044684,143.83,143.82,11.69919298]
[1741345015791,7.00224684,143.83,143.82,11.69919298]
[1741345016292,0.05044684,143.83,143.82,11.69919298]
[1741345016494,0.05044684,143.83,143.82,45.65149298]
[1741345016886,0.05044684,143.83,143.82,38.69919298]
[1741345017092,0.05044684,143.83,143.82,27.0]
[1741345017297,0.05044684,143.83,143.81,0.04617845]
[1741345017489,7.00244684,143.83,143.81,0.04617845]
[1741345018190,7.00244684,143.83,143.81,6.99877845]
[1741345019394,7.00244684,143.83,143.81,0.04617845]
[1741345020391,6.9523,143.82,143.81,0.04617845]
[1741345029500,26.98,143.82,143.75,11.69919298]
[1741345029802,26.98,143.82,143.77,11.69919298]
[1741345030204,6.9535,143.8,143.77,18.65349298]
[1741345030499,0.04903609,143.8,143.77,18.70517536]
[1741345030901,0.04903609,143.8,143.77,11.75087536]
[1741345031599,7.00253609,143.8,143.77,18.70547536]
[1741345032503,0.04903609,143.8,143.77,18.70547536]
[1741345032800,11.69919298,143.78,143.72,38.5337304]
[1741345032994,11.69919298,143.73,143.72,38.5337304]
[1741345033200,18.65579298,143.73,143.72,38.5337304]
[1741345034706,18.65579298,143.73,143.72,35.4310304]
[1741345035707,18.65579298,143.73,143.72,1e-08]
[1741345035912,6.9571,143.72,143.71,26.91451519]
[1741345036401,6.9576,143.71,143.7,105.67217484]
[1741345036608,6.9576,143.71,143.63,1.9003]
[1741345036609,13.60199298,143.71,143.63,1.9003]
[1741345036802,11.69919298,143.68,143.62,21.2971811]
[1741345037004,11.69919298,143.66,143.62,9.59798812]
[1741345037410,38.67919298,143.66,143.62,9.59798812]
[1741345037810,0.04428225,143.65,143.63,0.05049437]
[1741345038211,11.69919298,143.64,143.63,0.05049437]
[1741345038609,0.04428225,143.65,143.63,0.05049437]
[1741345039010,11.69919298,143.64,143.63,0.05049437]
[1741345039415,18.66019298,143.64,143.63,0.05049437]
[1741345039611,11.69919298,143.64,143.62,9.59798812]
[1741345039813,11.69919298,143.64,143.62,3.39138812]
[1741345040119,11.69919298,143.64,143.57,11.69919298]
[1741345040411,11.69919298,143.62,143.56,6.9645]
[1741345040616,33.9419,143.62,143.56,6.9645]
[1741345040917,0.05076506,143.6,143.58,0.04833626]
[1741345041615,0.05076506,143.6,143.59,6.9634]
[1741345043917,194.0,143.68,143.64,6.961]
[1741345044118,194.0,143.68,143.6,1.8642]
[1741345044317,27.0,143.69,143.63,18.33920217]
[1741345044825,27.0,143.69,143.61,45.33920217]
[1741345045321,0.05247122,143.66,143.64,0.04579264]
[1741345045919,0.05247122,143.66,143.65,6.9605]
[1741345049313,0.05247122,143.66,143.64,0.04579264]
[1741345050023,7.01267122,143.66,143.64,0.04579264]
[1741345050225,0.05247122,143.66,143.64,0.04579264]
[1741345050622,7.01247122,143.66,143.64,0.04579264]
[1741345050921,0.05247122,143.66,143.64,0.04579264]
[1741345052929,6.9605,143.65,143.64,0.04579264]
[1741345060528,18.69121392,143.65,143.64,0.04579264]
[1741345061118,27.03247122,143.66,143.64,0.04579264]
[1741345063631,6.9605,143.65,143.64,0.04579264]
[1741345066026,18.69121392,143.65,143.64,0.04579264]
[1741345068640,6.9605,143.65,143.64,0.04579264]
[1741345071827,7.01267122,143.66,143.64,0.04579264]
[1741345072345,0.05247122,143.66,143.64,0.04579264]
[1741345074437,7.01287122,143.66,143.64,0.04579264]
[1741345074633,0.05247122,143.66,143.64,7.00659264]
[1741345076132,7.01257122,143.66,143.64,7.00659264]
[1741345077133,7.01257122,143.66,143.64,0.04579264]
[1741345077933,6.9605,143.65,143.64,0.04579264]
[1741345084839,6.9605,143.65,143.64,9.264e-05]
[1741345086444,25.29067137,143.65,143.64,9.264e-05]
[1741345088646,18.69493953,143.65,143.64,9.264e-05]
[1741345090151,45.65493953,143.65,143.64,9.264e-05]
[1741345095353,18.69493953,143.65,143.64,9.264e-05]
[1741345095552,45.65493953,143.65,143.64,9.264e-05]
[1741345098448,0.05247122,143.66,143.64,9.264e-05]
[1741345098449,7.01277122,143.66,143.64,9.264e-05]
[1741345099048,6.9605,143.65,143.64,9.264e-05]
[1741345102945,7.01287122,143.66,143.64,9.264e-05]
[1741345103944,6.9605,143.65,143.64,9.264e-05]
[1741345108660,18.69493953,143.65,143.64,9.264e-05]
[1741345112757,6.9605,143.65,143.64,9.264e-05]
[1741345113663,29.03798132,143.66,143.64,9.264e-05]
[1741345113853,19.73108132,143.66,143.64,9.264e-05]
[1741345114056,10.42358132,143.66,143.65,11.73443953]
[1741345114562,77.2946936,143.67,143.66,6.96]
[1741345114759,77.2946936,143.67,143.65,11.73443953]
[1741345115056,0.04580279,143.67,143.65,11.73443953]
[1741345115558,0.04580279,143.67,143.64,9.264e-05]
[1741345116054,0.04580279,143.67,143.65,11.73443953]
[1741345116657,7.00560279,143.67,143.65,11.73443953]
[1741345117458,0.04580279,143.67,143.65,11.73443953]
[1741345117658,6.96,143.66,143.65,11.73443953]
[1741345117860,6.96,143.66,143.64,9.264e-05]
[1741345118566,7.00550279,143.67,143.64,6.96109264]
[1741345118758,7.00550279,143.67,143.64,9.264e-05]
[1741345119256,0.04580279,143.67,143.65,6.9602]
[1741345119764,0.04580279,143.67,143.64,9.264e-05]
[1741345120061,0.04580279,143.67,143.64,6.96079264]
[1741345120452,7.00550279,143.67,143.64,6.96079264]
[1741345120662,0.04580279,143.67,143.64,9.264e-05]
[1741345121969,6.9604,143.66,143.64,9.264e-05]
[1741345122661,0.04580279,143.67,143.64,9.264e-05]
[1741345123065,6.9603,143.66,143.64,9.264e-05]
[1741345124659,6.9605,143.65,143.64,9.264e-05]
[1741345137462,6.9602,143.66,143.64,9.264e-05]
[1741345138070,7.00560279,143.67,143.64,6.96079264]
[1741345138474,0.04580279,143.67,143.64,9.264e-05]
[1741345139876,0.04580279,143.67,143.65,18.69463953]
[1741345141066,0.04580279,143.67,143.66,6.96]
[1741345142176,15.5610307,143.73,143.7,6.9579]
[1741345142373,77.2946936,143.75,143.69,11.73443953]
[1741345142575,77.2946936,143.75,143.71,11.73443953]
[1741345143378,7.00717919,143.74,143.72,0.05212104]
[1741345144681,6.9566,143.73,143.72,0.05212104]
[1741345145577,0.05077919,143.74,143.72,0.05212104]
[1741345146379,0.05077919,143.74,143.72,7.00912104]
[1741345147278,0.05077919,143.74,143.73,6.9566]
[1741345147479,77.2946936,143.78,143.73,26.88]
[1741345147680,55.82484318,143.81,143.73,28.7641]
[1741345147983,28.94484318,143.81,143.74,18.3011861]
[1741345148578,0.04774062,143.79,143.76,0.05292315]
[1741345148882,6.9546,143.78,143.76,0.05292315]
[1741345149179,0.04774062,143.79,143.76,0.05292315]
[1741345149477,6.9547,143.77,143.76,0.05292315]
[1741345153589,6.9545,143.78,143.76,0.05292315]
[1741345154088,6.9547,143.77,143.76,0.05292315]
[1741345156483,6.9576,143.71,143.68,25.2599861]
[1741345156683,6.9576,143.71,143.68,52.1199861]
[1741345157489,26.86,143.75,143.66,18.3011861]
[1741345157794,0.05028276,143.71,143.68,0.04422424]
[1741345158388,6.9588,143.69,143.68,0.04422424]
[1741345158584,0.05028276,143.71,143.68,0.04422424]
[1741345158992,6.9581,143.7,143.68,0.04422424]
[1741345159188,0.05028276,143.71,143.68,0.04422424]
[1741345159589,6.9584,143.7,143.68,0.04422424]
[1741345161701,0.05028276,143.71,143.68,0.04422424]
[1741345161896,7.00808276,143.71,143.68,7.00312424]
[1741345162885,7.00808276,143.71,143.68,0.04422424]
[1741345163087,0.05028276,143.71,143.68,18.34541034]
[1741345163292,0.05028276,143.71,143.68,0.04422424]
[1741345164195,6.9585,143.69,143.68,0.04422424]
[1741345165205,6.9608,143.65,143.61,20.58524998]
[1741345165506,11.72294998,143.7,143.61,20.58524998]
[1741345165507,11.72294998,143.67,143.61,13.62284998]
[1741345165799,11.72294998,143.69,143.61,13.62284998]
[1741345166003,11.72294998,143.69,143.63,11.72294998]
[1741345166403,7.01219595,143.67,143.65,0.04448465]
[1741345167707,6.96,143.66,143.65,0.04448465]
[1741345181424,6.96,143.66,143.65,8.465e-05]
[1741345185218,0.05239595,143.67,143.65,8.465e-05]
[1741345185419,0.05239595,143.67,143.66,18.68294998]
[1741345188424,0.05239595,143.67,143.66,11.72294998]
[1741345190527,0.05239595,143.67,143.66,18.68294998]
[1741345191027,0.05239595,143.67,143.66,11.72294998]
[1741345191724,0.05239595,143.67,143.65,8.465e-05]
[1741345191913,7.01189595,143.67,143.65,8.465e-05]
[1741345192116,0.05239595,143.67,143.66,11.72294998]
[1741345192533,0.05239595,143.67,143.66,18.68294998]
[1741345193528,0.05239595,143.67,143.65,8.465e-05]
[1741345194821,0.05239595,143.67,143.66,6.96]
[1741345195026,0.05239595,143.67,143.66,18.68294998]
[1741345198426,0.05239595,143.67,143.66,11.72294998]
[1741345199021,0.05239595,143.67,143.65,26.84008465]
[1741345199634,0.05239595,143.67,143.66,6.96]
[1741345200433,0.05239595,143.67,143.66,18.68294998]
[1741345201133,0.05239595,143.67,143.66,6.96]
[1741345201733,0.05239595,143.67,143.65,26.84008465]
[1741345202226,0.05239595,143.67,143.66,18.68294998]
[1741345202630,32.93884318,143.76,143.7,6.9576]
[1741345202934,44.66179316,143.76,143.7,11.72294998]
[1741345203832,0.04563866,143.74,143.73,6.9563]
[1741345205129,0.04563866,143.74,143.72,18.72687818]
[1741345206937,0.04563866,143.74,143.73,6.9566]
[1741345207434,0.04563866,143.74,143.73,33.7766]
[1741345208030,47.51958788,143.78,143.76,6.9549]
[1741345208534,11.72294998,143.8,143.75,11.72294998]
[1741345209034,0.04513189,143.79,143.75,11.72294998]
[1741345209238,0.04513189,143.79,143.76,7.00845165]
[1741345209239,6.99903189,143.79,143.76,7.00845165]
[1741345210138,6.99903189,143.79,143.76,0.05335165]
[1741345210331,6.9543,143.78,143.76,0.05335165]
[1741345210640,11.72294998,143.78,143.76,0.05335165]
[1741345210832,6.9561,143.74,143.73,11.72294998]
[1741345211929,0.04655386,143.75,143.72,0.04626032]
[1741345212136,6.9566,143.73,143.72,0.04626032]
[1741345212839,6.9585,143.69,143.67,38.52294998]
[1741345213035,6.9585,143.69,143.67,11.72294998]
[1741345213945,7.00805973,143.69,143.67,11.7695062]
[1741345214139,0.04955973,143.69,143.67,11.7695062]
[1741345214735,0.04955973,143.69,143.67,0.04655622]
[1741345215240,0.04955973,143.69,143.67,7.00595622]
[1741345216040,0.04955973,143.69,143.67,0.04655622]
[1741345217134,0.04955973,143.69,143.67,7.00575622]
[1741345218143,0.04955973,143.69,143.67,0.04655622]
[1741345218443,0.04955973,143.69,143.68,6.959]
[1741345218836,7.00815973,143.69,143.67,7.00585622]
[1741345219038,7.00815973,143.69,143.67,0.04655622]
[1741345219242,0.04955973,143.69,143.67,0.04655622]
[1741345219546,0.04955973,143.69,143.68,6.959]
[1741345227752,0.04955973,143.69,143.67,18.35576991]
[1741345228049,0.04955973,143.69,143.67,0.04655622]
[1741345228949,7.00845973,143.69,143.67,0.04655622]
[1741345229152,0.04955973,143.69,143.67,0.04655622]
[1741345229845,0.04955973,143.69,143.68,6.959]
[1741345230851,0.04955973,143.69,143.67,0.04655622]
[1741345231952,0.04955973,143.69,143.67,7.00585622]
[1741345233258,0.04955973,143.69,143.68,6.959]
[1741345233761,0.04955973,143.69,143.67,7.00585622]
[1741345234553,0.04955973,143.69,143.67,0.04655622]
[1741345234857,7.00815973,143.69,143.67,0.04655622]
[1741345236160,0.04955973,143.69,143.67,0.04655622]
[1741345236363,0.04955973,143.69,143.67,7.00605622]
[1741345236553,0.04955973,143.69,143.68,11.71701105]
[1741345237561,7.00815973,143.69,143.68,11.71701105]
[1741345237755,0.04955973,143.69,143.68,11.71701105]
[1741345237959,28.94484318,143.76,143.68,11.71701105]
[1741345238161,28.94484318,143.76,143.69,26.78]
[1741345238551,6.9576,143.71,143.7,11.71701105]
[1741345238953,38.49701105,143.75,143.7,11.71701105]
[1741345239157,7.00353011,143.72,143.7,11.71701105]
[1741345239457,0.04613011,143.72,143.7,11.71701105]
[1741345239662,0.04613011,143.72,143.71,6.9576]
[1741345241060,0.04613011,143.72,143.71,68.9576]
[1741345241449,0.04613011,143.72,143.7,11.71701105]
[1741345242264,7.00363011,143.72,143.7,11.71701105]
[1741345242460,0.04613011,143.72,143.7,11.71701105]
[1741345244559,0.04613011,143.72,143.7,18.67481105]
[1741345245265,0.04613011,143.72,143.7,11.71701105]
[1741345245460,0.04613011,143.72,143.7,18.67481105]
[1741345246464,7.00333011,143.72,143.7,11.71701105]
[1741345246963,0.04613011,143.72,143.69,26.83091814]
[1741345247164,6.9581,143.7,143.69,0.05091814]
[1741345247866,0.04613011,143.72,143.69,0.05091814]
[1741345248067,6.9579,143.71,143.69,0.05091814]
[1741345249267,0.04613011,143.72,143.69,0.05091814]
[1741345250375,6.9579,143.71,143.69,0.05091814]
[1741345250876,6.9581,143.7,143.69,0.05091814]
[1741345255186,0.04613011,143.72,143.69,0.05091814]
[1741345255382,0.04613011,143.72,143.69,11.76792919]
[1741345255583,7.00343011,143.72,143.69,18.72612919]
[1741345255884,0.04613011,143.72,143.69,18.72612919]
[1741345256186,6.9576,143.71,143.69,11.76792919]
[1741345258188,6.9581,143.7,143.69,11.76792919]
[1741345261588,6.9581,143.7,143.69,0.05091814]
[1741345262089,7.00343011,143.72,143.69,0.05091814]
[1741345262283,0.04613011,143.72,143.69,0.05091814]
[1741345262683,7.00353011,143.72,143.69,0.05091814]
[1741345263477,7.00353011,143.72,143.69,7.00921814]
[1741345264080,0.04613011,143.72,143.71,6.9576]
[1741345264785,0.04613011,143.72,143.7,6.9579]
[1741345264980,0.04613011,143.72,143.69,38.52792919]
[1741345265185,6.9576,143.71,143.69,38.52792919]
[1741345265889,7.00343011,143.72,143.69,45.48642919]
[1741345266090,0.04613011,143.72,143.69,11.76792919]
[1741345266291,7.00343011,143.72,143.69,11.76792919]
[1741345266489,0.04613011,143.72,143.7,6.9578]
[1741345266995,0.04613011,143.72,143.69,11.76792919]
[1741345267386,6.9581,143.7,143.69,11.76792919]
[1741345267589,6.9581,143.7,143.69,0.05091814]
[1741345269791,30.24,143.7,143.58,90.67876666]
[1741345269997,11.71701105,143.68,143.61,11.71701105]
[1741345270297,6.9603,143.66,143.61,18.67941105]
[1741345270592,33.7203,143.66,143.61,18.67941105]
[1741345270790,0.04991616,143.65,143.63,11.71701105]
[1741345271896,0.04991616,143.65,143.62,11.76922805]
[1741345272585,6.9614,143.64,143.62,11.76922805]
[1741345272789,0.04991616,143.65,143.62,11.76922805]
[1741345273198,0.04991616,143.65,143.62,0.052217]
[1741345273891,6.9614,143.63,143.62,0.052217]
[1741345274090,11.71701105,143.64,143.58,11.71701105]
[1741345274487,11.71701105,143.64,143.6,11.71701105]
[1741345274692,38.47701105,143.66,143.6,11.71701105]
[1741345274892,6.9616,143.63,143.6,11.71701105]
[1741345275293,7.00809042,143.63,143.6,11.77056018]
[1741345276392,0.04649042,143.63,143.62,11.71701105]
[1741345276896,0.04649042,143.63,143.62,18.67891105]
[1741345277399,0.04649042,143.63,143.62,45.43891105]
[1741345280492,3.966,143.69,143.62,38.47701105]
[1741345280697,38.47701105,143.72,143.67,6.9595]
[1741345280898,6.9577,143.71,143.68,11.71701105]
[1741345281202,3.913,143.73,143.7,11.71701105]
[1741345281498,10.8697,143.73,143.7,11.71701105]
[1741345281694,0.04762344,143.73,143.72,11.71701105]
[1741345282293,0.04762344,143.73,143.72,18.67401105]
[1741345285501,37.85754318,143.78,143.75,6.9556]
[1741345285802,37.85754318,143.78,143.75,18.67261105]
[1741345286005,30.90324318,143.78,143.75,18.67261105]
[1741345286198,28.94484318,143.78,143.76,6.955]
[1741345286597,0.04424854,143.78,143.77,11.71701105]
[1741345287905,0.04424854,143.78,143.76,0.05021697]
[1741345288205,6.9547,143.77,143.76,0.05021697]
[1741345288398,0.04424854,143.78,143.76,0.05021697]
[1741345288806,0.04424854,143.78,143.76,7.00531697]
[1741345289003,0.04424854,143.78,143.77,11.71701105]
[1741345290206,0.04424854,143.78,143.77,18.67171105]
[1741345291204,0.04424854,143.78,143.77,11.71701105]
[1741345292000,0.04424854,143.78,143.77,18.67171105]
[1741345292702,28.94484318,143.85,143.8,6.9532]
[1741345293002,28.94484318,143.85,143.81,11.71701105]
[1741345293209,26.72,143.86,143.81,11.71701105]
[1741345293408,26.72,143.86,143.81,18.66951105]
[1741345293608,26.72,143.86,143.81,11.71701105]
[1741345294105,6.9516,143.84,143.82,0.04696623]
[1741345294410,0.05345228,143.85,143.82,0.04696623]
[1741345295111,6.9516,143.84,143.82,0.04696623]
[1741345295410,0.05345228,143.85,143.82,0.04696623]
[1741345295608,7.00435228,143.85,143.82,6.99906623]
[1741345296511,6.9514,143.84,143.82,0.04696623]
[1741345297211,0.05345228,143.85,143.82,0.04696623]
[1741345297412,6.9518,143.83,143.82,0.04696623]
[1741345297811,0.05345228,143.85,143.82,0.04696623]
[1741345298013,7.00445228,143.85,143.82,0.04696623]
[1741345298312,0.05345228,143.85,143.82,0.04696623]
[1741345298613,6.9517,143.84,143.82,0.04696623]
[1741345298811,0.05345228,143.85,143.82,6.99916623]
[1741345299305,0.05345228,143.85,143.83,6.9514]
[1741345299509,0.05345228,143.85,143.82,0.04696623]
[1741345300110,6.9518,143.83,143.82,0.04696623]
[1741345301213,26.7,143.84,143.76,26.7]
[1741345302117,6.9538,143.79,143.76,33.6549]
[1741345302311,0.04400436,143.81,143.76,26.7]
[1741345302511,6.954,143.79,143.76,33.70410554]
[1741345303319,6.9542,143.78,143.76,33.70410554]
[1741345303519,6.9542,143.78,143.76,26.74900554]
[1741345304315,6.9547,143.77,143.76,26.74900554]
[1741345304511,6.9547,143.77,143.76,0.04900554]
[1741345305312,0.04565728,143.78,143.76,0.04900554]
[1741345306213,0.04565728,143.78,143.76,7.00410554]
[1741345306612,0.04565728,143.78,143.76,0.04900554]
[1741345306919,6.9547,143.77,143.76,0.04900554]
[1741345307122,0.04565728,143.78,143.76,0.04900554]
[1741345307419,0.04565728,143.78,143.76,7.00390554]
[1741345307620,0.04565728,143.78,143.76,0.04900554]
[1741345307915,0.04565728,143.78,143.77,6.9547]
[1741345308319,0.04565728,143.78,143.76,7.00390554]
[1741345309220,6.99985728,143.78,143.76,0.04900554]
[1741345310522,0.04565728,143.78,143.76,0.04900554]
[1741345310822,0.04565728,143.78,143.76,7.00410554]
[1741345311520,0.04565728,143.78,143.77,6.9547]
[1741345312624,0.04565728,143.78,143.76,7.00390554]
[1741345314118,0.04565728,143.78,143.77,6.9547]
[1741345315625,0.04565728,143.78,143.76,0.04900554]
[1741345316025,6.9547,143.77,143.76,0.04900554]
[1741345321329,0.04565728,143.78,143.73,11.70506147]
[1741345321330,6.9561,143.74,143.73,11.70506147]
[1741345321827,11.70506147,143.78,143.73,11.70506147]
[1741345322225,11.70506147,143.78,143.73,18.66136147]
[1741345322532,0.04446949,143.77,143.74,0.05325687]
[1741345322730,6.9556,143.75,143.74,0.05325687]
[1741345323620,0.04446949,143.77,143.74,0.05325687]
[1741345323822,0.04446949,143.77,143.75,6.9553]
[1741345324025,0.04446949,143.77,143.75,18.66036147]
[1741345324624,0.04446949,143.77,143.75,11.70506147]
[1741345324625,6.99956949,143.77,143.75,11.70506147]
[1741345324827,0.04446949,143.77,143.75,11.70506147]
[1741345325633,6.99926949,143.77,143.75,11.70506147]
[1741345326430,6.99926949,143.77,143.75,18.66066147]
[1741345326631,0.04446949,143.77,143.75,18.66066147]
[1741345327730,6.99926949,143.77,143.75,18.66066147]
[1741345327930,0.04446949,143.77,143.75,18.66066147]
[1741345328330,6.99926949,143.77,143.75,11.70506147]
[1741345328638,0.04446949,143.77,143.75,11.70506147]
[1741345328823,6.9552,143.76,143.75,11.70506147]
[1741345329226,0.04446949,143.77,143.75,11.70506147]
[1741345329627,6.99946949,143.77,143.75,11.70506147]
[1741345332038,0.04446949,143.77,143.75,11.70506147]
[1741345332441,0.04446949,143.77,143.76,6.9552]
[1741345333143,52.09415493,143.83,143.8,6.9532]
[1741345333340,52.09415493,143.83,143.81,11.70506147]
[1741345333532,45.14225493,143.83,143.81,18.65776147]
[1741345333843,28.94484318,143.83,143.81,11.70506147]
[1741345334142,28.99794165,143.83,143.82,33.6323]
[1741345334336,116.0015391,143.85,143.82,26.68]
[1741345334642,88.71877415,143.84,143.83,11.70506147]
[1741345334943,61.66377415,143.84,143.83,18.65686147]
[1741345335939,21.24307415,143.84,143.83,18.65686147]
[1741345336131,78.76966533,143.85,143.84,6.9513]
[1741345336336,54.61256533,143.85,143.84,6.9513]
[1741345336536,192.86157636,143.86,143.85,6.9508]
[1741345336843,180.55396663,143.86,143.85,6.9508]
[1741345337045,169.57296663,143.86,143.85,10.4308]
[1741345337838,0.0490306,143.87,143.86,6.9503]
[1741345338037,0.0490306,143.87,143.86,33.6103]
[1741345338238,0.0490306,143.87,143.86,26.66]
[1741345338444,0.0490306,143.87,143.86,44.9119911]
[1741345346243,0.0490306,143.87,143.86,51.8622911]
[1741345347251,0.0490306,143.87,143.86,44.9119911]
[1741345352150,0.0490306,143.87,143.84,18.29975]
[1741345352561,6.9503,143.86,143.84,18.29975]
[1741345352763,0.0490306,143.87,143.84,18.29975]
[1741345354569,6.9506,143.86,143.84,18.29975]
[1741345355165,6.9991306,143.87,143.84,18.29975]
[1741345355370,6.9991306,143.87,143.84,25.25095]
[1741345355665,6.9991306,143.87,143.84,18.29975]
[1741345356563,6.9506,143.86,143.85,11.68817264]
[1741345357667,6.9997306,143.87,143.85,11.68817264]
[1741345358065,0.0490306,143.87,143.85,11.68817264]
[1741345358465,6.951,143.86,143.85,11.68817264]
[1741345358969,6.951,143.86,143.84,0.0477589]
[1741345359166,6.951,143.86,143.85,11.68817264]
[1741345359370,0.0490306,143.87,143.84,0.0477589]
[1741345359672,1.9992,143.86,143.84,0.0477589]
[1741345359967,1.9992,143.86,143.83,11.68817264]
[1741345359968,13.68737264,143.86,143.81,11.68817264]
[1741345360770,6.9529,143.82,143.81,11.68817264]
[1741345361470,0.05182801,143.83,143.81,11.68817264]
[1741345361774,0.05182801,143.83,143.82,11.68817264]
[1741345366871,7.00432801,143.83,143.82,11.68817264]
[1741345367672,0.05182801,143.83,143.8,11.73482444]
[1741345368071,0.05182801,143.83,143.8,18.68862444]
[1741345368471,0.05182801,143.83,143.8,11.73482444]
[1741345368978,6.953,143.82,143.8,11.73482444]
[1741345369381,0.05182801,143.83,143.8,11.73482444]
[1741345369574,0.05182801,143.83,143.82,11.68817264]
[1741345370473,7.00432801,143.83,143.82,11.68817264]
[1741345370878,0.05182801,143.83,143.82,11.68817264]
[1741345372277,0.05182801,143.83,143.82,18.64107264]
[1741345373884,0.05182801,143.83,143.82,11.68817264]
[1741345374584,7.00432801,143.83,143.82,11.68817264]
[1741345377091,0.05182801,143.83,143.82,11.68817264]
[1741345378787,7.00432801,143.83,143.82,11.68817264]
[1741345379691,0.05182801,143.83,143.82,11.68817264]
[1741345380889,0.05182801,143.83,143.8,0.0466518]
[1741345381496,6.9534,143.81,143.8,0.0466518]
[1741345384189,1.9809,143.82,143.8,0.0466518]
[1741345384190,8.934,143.82,143.8,0.0466518]
[1741345384494,1.9809,143.82,143.8,0.0466518]
[1741345386192,6.9534,143.81,143.8,0.0466518]
[1741345386398,1.9809,143.82,143.8,0.0466518]
[1741345386892,1.9809,143.82,143.81,11.68817264]
[1741345387898,1.9809,143.82,143.8,0.0466518]
[1741345388492,6.9534,143.81,143.8,0.0466518]
[1741345391488,6.9534,143.81,143.79,11.68817264]
[1741345391489,6.9539,143.8,143.79,11.68817264]
[1741345391795,1.9809,143.82,143.76,11.68817264]
[1741345392190,1.9809,143.82,143.78,11.68817264]
[1741345392597,6.9551,143.78,143.76,11.68817264]
[1741345393002,6.9551,143.78,143.76,11.74011002]
[1741345393300,0.05328718,143.81,143.76,11.74011002]
[1741345393804,11.74145982,143.81,143.76,11.74011002]
[1741345394003,6.9554,143.77,143.76,11.74011002]
[1741345394997,7.00409211,143.78,143.76,11.74011002]
[1741345395197,0.04899211,143.78,143.76,11.74011002]
[1741345395491,6.9554,143.77,143.76,0.05193738]
[1741345396300,6.9568,143.74,143.73,11.68817264]
[1741345397208,1.9353,143.77,143.73,11.68817264]
[1741345397398,0.04776802,143.75,143.73,11.68817264]
[1741345397900,6.9568,143.74,143.73,11.68817264]
[1741345398101,0.04776802,143.75,143.73,11.68817264]
[1741345398406,7.00436802,143.75,143.73,11.68817264]
[1741345398798,7.00436802,143.75,143.72,0.04887065]
[1741345399098,6.9573,143.73,143.72,0.04887065]